Workbook

Sheet Intro
C3: Capital and income
C5: This calculator is part of Momentum's ongoing support to brokers. Due to the circumstances under which it
C6: will be used, it can never constitute financial advice on Momentum's part to you in a client/adviser relationship.
C8: Any financial planning is a specialised exercise for which we recommend the advice of a Momentum accredited
C9: financial adviser.
C11: This analysis tool may be used only on condition that the user verifies and endorses its contents as accurate.
C13: Every care has been taken to ensure accuracy and legal correctness, but this is not guaranteed.
C15: Copyright on this material exists and it may not be copied or duplicated in any manner.
C16: Please note that several calculations are based on unique features of Momentum products only.
C17: The results may be invalid if applied to products of other insurers.

Sheet General
C6: Capital and income
C9: My current age | D9: 30
C11: Consumer Price Index | D11: =Calcs!C140 -> 0.06

Sheet Help
C6: Help
C8: For further enquiries that you cannot resolve here, please contact:
C10: Ben Fraser
C11: 012 673 7823
C12: 082 807 5084
C13: bfraser@momentum.co.za

Sheet Quote
C6: Capital and income
C8: My future needs and my existing provisions
C10: Contribution to age | D10: 60 | E10: =IF(D10<General!D9+1," No time to contribute!!","") -> 
C12: Income required to age | D12: 85 | E12: =IF(D12>100," Calculation to age 100 only","") -> 
C14: Monthly income required | D14: 1
C16: Income escalation pa | D16: 0.06
C18: Single contribution | D18: 0
C20: Other exiting capital | D20: 0 | E20: growing at | F20: 0 | G20: per year
C22: Other exiting capital | D22: 0 | E22: growing at | F22: 0 | G22: Per year
C25: Assumptions
C27: Growth on savings | D27: 0.1
C29: Return on capital balance | D29: 0.1
C31: Contribution interval | D31: Monthly
C33: Annual increase of savings level | D33: 0.05
C35: Consumer price index | D35: =Calcs!C140 -> 0.06
C38: Result
C40: Contribution required | D40: =Calcs!C18 -> 0.36 | E40: =IF(Calcs!C3=Calcs!B3," per month","per year") -> per month
C42: Capital available (FV) | D42: =Calcs!E28 -> 1194.75459
C44: Capitalised income (FV) | D44: =SUM(Calcs!F33:F113) -> 4077.169943

Sheet FV
C6: Quick financial calculation
C9: This is not an official quotation from Momentum and it does not comply to legislation
C11: Maturity value of a given contribution
C13: Recurring monthly contribution | D13: 0
C15: Annual increase of savings level | D15: 0.05
C17: Single contribution | D17: 0
C19: Investment term | D19: 5
C21: Portfolio growth | D21: 0.1
C23: Maturity value | D23: =Calcs!C117 -> 0
C26: Contribution required to achieve a given maturity value
C28: Maturity value required | D28: 0
C30: Annual increase of savings level | D30: 0.05
C32: Single contribution | D32: 0
C34: Investment term | D34: 5
C36: Portfolio growth | D36: 0.1
C38: Recurring contribution | D38: =Calcs!C240 -> 0
C40: Capital sum created | D40: =Calcs!C236 -> 0

Sheet Term
C6: Income term and capital required
C9: Income need
C11: Monthly income required | D11: 1
C13: First income taken at age | D13: 60 | E13: =IF(D13>General!D9,""," There is no time to build capital …") -> 
C15: Income escalation per year | D15: 0.06
C17: Consumer price index | D17: =Calcs!C140 -> 0.06
C20: Existing and new provisions *
C22: Existing capital valued at | D22: 0 | E22: and growing at | F22: 0 | G22: per year
C24: Existing capital valued at | D24: 0 | E24: and growing at | F24: 0 | G24: per year
C26: Recurring monthly contribution | D26: 0
C28: Annual increase of savings level | D28: 0.05
C30: Single contribution | D30: 0
C32: Growth rate of savings portfolio | D32: 0.1
C34: Return on capital | D34: 0.1
C37: Result
C39: Capital base that you created | D39: =Calcs!C129+Calcs!G129+Calcs!K129 -> 0
C41: Income generated to year-end of age | D41: =Calcs!J145 -> 0
C44: Notes
C46: You will stop making recurring contributions when you start drawing an income from this capital.
C47: * This is the total of all existing and new investments that is needed to provide income for the given term.

Sheet Calcs (hidden)
B2: Instalment frequency
B3: Monthly | C3: =Quote!D31 -> Monthly
B4: Annually
B6: CPI | C6: 600
C7: =C6/10000 -> 0.06
B9: BIA Illustration rate | C9: 0.05
C10: 0.1
B14: Future Value = | C14: =C18*(1+C20)^C16*((1-((1+C21)^-12))/(C21/(1+C21)))*((1-((1+C23)^-C16))/(C23/(1+C23)))+(C17*(1+C20)^C16) -> 1194.75459 | F14: Future Value = | G14: =G18*(1+G20)^G16*((1-((1+G21)^-12))/(G21/(1+G21)))*((1-((1+G23)^-G16))/(G23/(1+G23)))+(G17*(1+G20)^G16) -> 0 | J14: Future Value = | K14: =K18*(1+K20)^K16*((1-((1+K21)^-12))/(K21/(1+K21)))*((1-((1+K23)^-K16))/(K23/(1+K23)))+(K17*(1+K20)^K16) -> 0
B16: Term (years) | C16: =Quote!D10-General!D9 -> 30 | D16: n | F16: Term (years) | G16: =Quote!D10-General!D9 -> 30 | H16: n | J16: Term (years) | K16: =Quote!D10-General!D9 -> 30 | L16: n
B17: Single Premium / Present Value | C17: =Quote!D18 -> 0 | D17: S | F17: Single Premium / Present Value | G17: =Quote!D20 -> 0 | H17: S | J17: Single Premium / Present Value | K17: =Quote!D22 -> 0 | L17: S
B18: Recurring Premium | C18: 0.36 | D18: P | F18: Recurring Premium | G18: 0 | H18: P | J18: Recurring Premium | K18: 0 | L18: P
B19: Premium Escalation | C19: =Quote!D33 -> 0.05 | D19: e | F19: Premium Escalation | G19: 0 | H19: e | J19: Premium Escalation | K19: 0 | L19: e
B20: Portfolio Growth (annual) | C20: =Quote!D27+0.0000000001 -> 0.1000000001 | D20: i | F20: Portfolio Growth (annual) | G20: =Quote!F20+0.0000000001 -> 1e-10 | H20: i | J20: Portfolio Growth (annual) | K20: =Quote!F22+0.0000000001 -> 1e-10 | L20: i
B21: Portfolio Growth (monthly) | C21: =((1+C20)^(1/12))-1 -> 0.007974140437 | D21: m | F21: Portfolio Growth (monthly) | G21: =((1+G20)^(1/12))-1 -> 8.333334023e-12 | H21: m | J21: Portfolio Growth (monthly) | K21: =((1+K20)^(1/12))-1 -> 8.333334023e-12 | L21: m
B23: J = | C23: =((1+(C20+0.0000000001))/(1+C19))-1 -> 0.04761904781 | D23: J | F23: J = | G23: =((1+(G20+0.0000000001))/(1+G19))-1 -> 2.000000165e-10 | H23: J | J23: J = | K23: =((1+(K20+0.0000000001))/(1+K19))-1 -> 2.000000165e-10 | L23: J
B26: Term | C26: Age | D26: Income | E26: Capital | F26: Income | G26: Capital | H26: Capital | I26: Capital | J26: Target
B27: (years) | C27: =General!D9 -> 30 | D27: required | E27: begin | F27: required | G27: after income | H27: growth | I27: year end | J27: capital in last
D28: CPI | E28: =C14+G14+K14 -> 1194.75459 | F28: first retirement year | H28: =Quote!D29 -> 0.1 | J28: income year
D29: =Calcs!C140 -> 0.06 | F29: =Quote!D10 -> 60 | J29: =SUM(J33:J113) -> 272.8378437
D30: =Quote!D14 -> 1 | F30: =MAX(D33:D113)*12 -> 68.92189407
F31: =SUM(F33:F113) -> 4077.169943
B33: 1 | C33: =C27 -> 30 | D33: =IF(Quote!D10=Calcs!C33,Calcs!D30,0) -> 0 | E33: =IF(C33=F29,E28,0) -> 0 | F33: =IF(F29=C33,F30,0) -> 0 | G33: =E33-F33 -> 0 | H33: =G33*$H$28 -> 0 | I33: =G33+H33 -> 0 | J33: =IF(C33=Quote!$D$12,I33,0) -> 0
B34: 2 | C34: =C33+1 -> 31 | D34: =IF(Quote!$D$10=Calcs!C34,Calcs!$D$30*(1+Calcs!$D$29)^B33,0) -> 0 | E34: =IF(C34>Quote!$D$12,0,IF(C34=$F$29,$E$28,I33)) -> 0 | F34: =IF(C34>Quote!$D$12,0,IF(F33>0,F33*(1+Quote!$D$16),IF($F$29=C34,$F$30,0))) -> 0 | G34: =E34-F34 -> 0 | H34: =G34*$H$28 -> 0 | I34: =G34+H34 -> 0 | J34: =IF(C34=Quote!$D$12,I34,0) -> 0
B35: 3 | C35: =C34+1 -> 32 | D35: =IF(Quote!$D$10=Calcs!C35,Calcs!$D$30*(1+Calcs!$D$29)^B34,0) -> 0 | E35: =IF(C35>Quote!$D$12,0,IF(C35=$F$29,$E$28,I34)) -> 0 | F35: =IF(C35>Quote!$D$12,0,IF(F34>0,F34*(1+Quote!$D$16),IF($F$29=C35,$F$30,0))) -> 0 | G35: 0 | H35: 0 | I35: 0 | J35: =IF(C35=Quote!$D$12,I35,0) -> 0
B36: 4 | C36: 33 | D36: =IF(Quote!$D$10=Calcs!C36,Calcs!$D$30*(1+Calcs!$D$29)^B35,0) -> 0 | E36: =IF(C36>Quote!$D$12,0,IF(C36=$F$29,$E$28,I35)) -> 0 | F36: =IF(C36>Quote!$D$12,0,IF(F35>0,F35*(1+Quote!$D$16),IF($F$29=C36,$F$30,0))) -> 0 | G36: 0 | H36: 0 | I36: 0 | J36: =IF(C36=Quote!$D$12,I36,0) -> 0
B37: 5 | C37: 34 | D37: =IF(Quote!$D$10=Calcs!C37,Calcs!$D$30*(1+Calcs!$D$29)^B36,0) -> 0 | E37: =IF(C37>Quote!$D$12,0,IF(C37=$F$29,$E$28,I36)) -> 0 | F37: =IF(C37>Quote!$D$12,0,IF(F36>0,F36*(1+Quote!$D$16),IF($F$29=C37,$F$30,0))) -> 0 | G37: 0 | H37: 0 | I37: 0 | J37: =IF(C37=Quote!$D$12,I37,0) -> 0
B38: 6 | C38: 35 | D38: =IF(Quote!$D$10=Calcs!C38,Calcs!$D$30*(1+Calcs!$D$29)^B37,0) -> 0 | E38: =IF(C38>Quote!$D$12,0,IF(C38=$F$29,$E$28,I37)) -> 0 | F38: =IF(C38>Quote!$D$12,0,IF(F37>0,F37*(1+Quote!$D$16),IF($F$29=C38,$F$30,0))) -> 0 | G38: 0 | H38: 0 | I38: 0 | J38: =IF(C38=Quote!$D$12,I38,0) -> 0
B39: 7 | C39: 36 | D39: =IF(Quote!$D$10=Calcs!C39,Calcs!$D$30*(1+Calcs!$D$29)^B38,0) -> 0 | E39: =IF(C39>Quote!$D$12,0,IF(C39=$F$29,$E$28,I38)) -> 0 | F39: =IF(C39>Quote!$D$12,0,IF(F38>0,F38*(1+Quote!$D$16),IF($F$29=C39,$F$30,0))) -> 0 | G39: 0 | H39: 0 | I39: 0 | J39: =IF(C39=Quote!$D$12,I39,0) -> 0
B40: 8 | C40: 37 | D40: =IF(Quote!$D$10=Calcs!C40,Calcs!$D$30*(1+Calcs!$D$29)^B39,0) -> 0 | E40: =IF(C40>Quote!$D$12,0,IF(C40=$F$29,$E$28,I39)) -> 0 | F40: =IF(C40>Quote!$D$12,0,IF(F39>0,F39*(1+Quote!$D$16),IF($F$29=C40,$F$30,0))) -> 0 | G40: 0 | H40: 0 | I40: 0 | J40: =IF(C40=Quote!$D$12,I40,0) -> 0
B41: 9 | C41: 38 | D41: =IF(Quote!$D$10=Calcs!C41,Calcs!$D$30*(1+Calcs!$D$29)^B40,0) -> 0 | E41: =IF(C41>Quote!$D$12,0,IF(C41=$F$29,$E$28,I40)) -> 0 | F41: =IF(C41>Quote!$D$12,0,IF(F40>0,F40*(1+Quote!$D$16),IF($F$29=C41,$F$30,0))) -> 0 | G41: 0 | H41: 0 | I41: 0 | J41: =IF(C41=Quote!$D$12,I41,0) -> 0
B42: 10 | C42: 39 | D42: =IF(Quote!$D$10=Calcs!C42,Calcs!$D$30*(1+Calcs!$D$29)^B41,0) -> 0 | E42: =IF(C42>Quote!$D$12,0,IF(C42=$F$29,$E$28,I41)) -> 0 | F42: =IF(C42>Quote!$D$12,0,IF(F41>0,F41*(1+Quote!$D$16),IF($F$29=C42,$F$30,0))) -> 0 | G42: 0 | H42: 0 | I42: 0 | J42: =IF(C42=Quote!$D$12,I42,0) -> 0
B43: 11 | C43: 40 | D43: =IF(Quote!$D$10=Calcs!C43,Calcs!$D$30*(1+Calcs!$D$29)^B42,0) -> 0 | E43: =IF(C43>Quote!$D$12,0,IF(C43=$F$29,$E$28,I42)) -> 0 | F43: =IF(C43>Quote!$D$12,0,IF(F42>0,F42*(1+Quote!$D$16),IF($F$29=C43,$F$30,0))) -> 0 | G43: 0 | H43: 0 | I43: 0 | J43: =IF(C43=Quote!$D$12,I43,0) -> 0
B44: 12 | C44: 41 | D44: =IF(Quote!$D$10=Calcs!C44,Calcs!$D$30*(1+Calcs!$D$29)^B43,0) -> 0 | E44: =IF(C44>Quote!$D$12,0,IF(C44=$F$29,$E$28,I43)) -> 0 | F44: =IF(C44>Quote!$D$12,0,IF(F43>0,F43*(1+Quote!$D$16),IF($F$29=C44,$F$30,0))) -> 0 | G44: 0 | H44: 0 | I44: 0 | J44: =IF(C44=Quote!$D$12,I44,0) -> 0
B45: 13 | C45: 42 | D45: =IF(Quote!$D$10=Calcs!C45,Calcs!$D$30*(1+Calcs!$D$29)^B44,0) -> 0 | E45: =IF(C45>Quote!$D$12,0,IF(C45=$F$29,$E$28,I44)) -> 0 | F45: =IF(C45>Quote!$D$12,0,IF(F44>0,F44*(1+Quote!$D$16),IF($F$29=C45,$F$30,0))) -> 0 | G45: 0 | H45: 0 | I45: 0 | J45: =IF(C45=Quote!$D$12,I45,0) -> 0
B46: 14 | C46: 43 | D46: =IF(Quote!$D$10=Calcs!C46,Calcs!$D$30*(1+Calcs!$D$29)^B45,0) -> 0 | E46: =IF(C46>Quote!$D$12,0,IF(C46=$F$29,$E$28,I45)) -> 0 | F46: =IF(C46>Quote!$D$12,0,IF(F45>0,F45*(1+Quote!$D$16),IF($F$29=C46,$F$30,0))) -> 0 | G46: 0 | H46: 0 | I46: 0 | J46: =IF(C46=Quote!$D$12,I46,0) -> 0
B47: 15 | C47: 44 | D47: =IF(Quote!$D$10=Calcs!C47,Calcs!$D$30*(1+Calcs!$D$29)^B46,0) -> 0 | E47: =IF(C47>Quote!$D$12,0,IF(C47=$F$29,$E$28,I46)) -> 0 | F47: =IF(C47>Quote!$D$12,0,IF(F46>0,F46*(1+Quote!$D$16),IF($F$29=C47,$F$30,0))) -> 0 | G47: 0 | H47: 0 | I47: 0 | J47: =IF(C47=Quote!$D$12,I47,0) -> 0
B48: 16 | C48: 45 | D48: =IF(Quote!$D$10=Calcs!C48,Calcs!$D$30*(1+Calcs!$D$29)^B47,0) -> 0 | E48: =IF(C48>Quote!$D$12,0,IF(C48=$F$29,$E$28,I47)) -> 0 | F48: =IF(C48>Quote!$D$12,0,IF(F47>0,F47*(1+Quote!$D$16),IF($F$29=C48,$F$30,0))) -> 0 | G48: 0 | H48: 0 | I48: 0 | J48: =IF(C48=Quote!$D$12,I48,0) -> 0
B49: 17 | C49: 46 | D49: =IF(Quote!$D$10=Calcs!C49,Calcs!$D$30*(1+Calcs!$D$29)^B48,0) -> 0 | E49: =IF(C49>Quote!$D$12,0,IF(C49=$F$29,$E$28,I48)) -> 0 | F49: =IF(C49>Quote!$D$12,0,IF(F48>0,F48*(1+Quote!$D$16),IF($F$29=C49,$F$30,0))) -> 0 | G49: 0 | H49: 0 | I49: 0 | J49: =IF(C49=Quote!$D$12,I49,0) -> 0
B50: 18 | C50: 47 | D50: =IF(Quote!$D$10=Calcs!C50,Calcs!$D$30*(1+Calcs!$D$29)^B49,0) -> 0 | E50: =IF(C50>Quote!$D$12,0,IF(C50=$F$29,$E$28,I49)) -> 0 | F50: =IF(C50>Quote!$D$12,0,IF(F49>0,F49*(1+Quote!$D$16),IF($F$29=C50,$F$30,0))) -> 0 | G50: 0 | H50: 0 | I50: 0 | J50: =IF(C50=Quote!$D$12,I50,0) -> 0
B51: 19 | C51: 48 | D51: =IF(Quote!$D$10=Calcs!C51,Calcs!$D$30*(1+Calcs!$D$29)^B50,0) -> 0 | E51: =IF(C51>Quote!$D$12,0,IF(C51=$F$29,$E$28,I50)) -> 0 | F51: =IF(C51>Quote!$D$12,0,IF(F50>0,F50*(1+Quote!$D$16),IF($F$29=C51,$F$30,0))) -> 0 | G51: 0 | H51: 0 | I51: 0 | J51: =IF(C51=Quote!$D$12,I51,0) -> 0
B52: 20 | C52: 49 | D52: =IF(Quote!$D$10=Calcs!C52,Calcs!$D$30*(1+Calcs!$D$29)^B51,0) -> 0 | E52: =IF(C52>Quote!$D$12,0,IF(C52=$F$29,$E$28,I51)) -> 0 | F52: =IF(C52>Quote!$D$12,0,IF(F51>0,F51*(1+Quote!$D$16),IF($F$29=C52,$F$30,0))) -> 0 | G52: 0 | H52: 0 | I52: 0 | J52: =IF(C52=Quote!$D$12,I52,0) -> 0
B53: 21 | C53: 50 | D53: =IF(Quote!$D$10=Calcs!C53,Calcs!$D$30*(1+Calcs!$D$29)^B52,0) -> 0 | E53: =IF(C53>Quote!$D$12,0,IF(C53=$F$29,$E$28,I52)) -> 0 | F53: =IF(C53>Quote!$D$12,0,IF(F52>0,F52*(1+Quote!$D$16),IF($F$29=C53,$F$30,0))) -> 0 | G53: 0 | H53: 0 | I53: 0 | J53: =IF(C53=Quote!$D$12,I53,0) -> 0
B54: 22 | C54: 51 | D54: =IF(Quote!$D$10=Calcs!C54,Calcs!$D$30*(1+Calcs!$D$29)^B53,0) -> 0 | E54: =IF(C54>Quote!$D$12,0,IF(C54=$F$29,$E$28,I53)) -> 0 | F54: =IF(C54>Quote!$D$12,0,IF(F53>0,F53*(1+Quote!$D$16),IF($F$29=C54,$F$30,0))) -> 0 | G54: 0 | H54: 0 | I54: 0 | J54: =IF(C54=Quote!$D$12,I54,0) -> 0
B55: 23 | C55: 52 | D55: =IF(Quote!$D$10=Calcs!C55,Calcs!$D$30*(1+Calcs!$D$29)^B54,0) -> 0 | E55: =IF(C55>Quote!$D$12,0,IF(C55=$F$29,$E$28,I54)) -> 0 | F55: =IF(C55>Quote!$D$12,0,IF(F54>0,F54*(1+Quote!$D$16),IF($F$29=C55,$F$30,0))) -> 0 | G55: 0 | H55: 0 | I55: 0 | J55: =IF(C55=Quote!$D$12,I55,0) -> 0
B56: 24 | C56: 53 | D56: =IF(Quote!$D$10=Calcs!C56,Calcs!$D$30*(1+Calcs!$D$29)^B55,0) -> 0 | E56: =IF(C56>Quote!$D$12,0,IF(C56=$F$29,$E$28,I55)) -> 0 | F56: =IF(C56>Quote!$D$12,0,IF(F55>0,F55*(1+Quote!$D$16),IF($F$29=C56,$F$30,0))) -> 0 | G56: 0 | H56: 0 | I56: 0 | J56: =IF(C56=Quote!$D$12,I56,0) -> 0
B57: 25 | C57: 54 | D57: =IF(Quote!$D$10=Calcs!C57,Calcs!$D$30*(1+Calcs!$D$29)^B56,0) -> 0 | E57: =IF(C57>Quote!$D$12,0,IF(C57=$F$29,$E$28,I56)) -> 0 | F57: =IF(C57>Quote!$D$12,0,IF(F56>0,F56*(1+Quote!$D$16),IF($F$29=C57,$F$30,0))) -> 0 | G57: 0 | H57: 0 | I57: 0 | J57: =IF(C57=Quote!$D$12,I57,0) -> 0
B58: 26 | C58: 55 | D58: =IF(Quote!$D$10=Calcs!C58,Calcs!$D$30*(1+Calcs!$D$29)^B57,0) -> 0 | E58: =IF(C58>Quote!$D$12,0,IF(C58=$F$29,$E$28,I57)) -> 0 | F58: =IF(C58>Quote!$D$12,0,IF(F57>0,F57*(1+Quote!$D$16),IF($F$29=C58,$F$30,0))) -> 0 | G58: 0 | H58: 0 | I58: 0 | J58: =IF(C58=Quote!$D$12,I58,0) -> 0
B59: 27 | C59: 56 | D59: =IF(Quote!$D$10=Calcs!C59,Calcs!$D$30*(1+Calcs!$D$29)^B58,0) -> 0 | E59: =IF(C59>Quote!$D$12,0,IF(C59=$F$29,$E$28,I58)) -> 0 | F59: =IF(C59>Quote!$D$12,0,IF(F58>0,F58*(1+Quote!$D$16),IF($F$29=C59,$F$30,0))) -> 0 | G59: 0 | H59: 0 | I59: 0 | J59: =IF(C59=Quote!$D$12,I59,0) -> 0
B60: 28 | C60: 57 | D60: =IF(Quote!$D$10=Calcs!C60,Calcs!$D$30*(1+Calcs!$D$29)^B59,0) -> 0 | E60: =IF(C60>Quote!$D$12,0,IF(C60=$F$29,$E$28,I59)) -> 0 | F60: =IF(C60>Quote!$D$12,0,IF(F59>0,F59*(1+Quote!$D$16),IF($F$29=C60,$F$30,0))) -> 0 | G60: 0 | H60: 0 | I60: 0 | J60: =IF(C60=Quote!$D$12,I60,0) -> 0
B61: 29 | C61: 58 | D61: =IF(Quote!$D$10=Calcs!C61,Calcs!$D$30*(1+Calcs!$D$29)^B60,0) -> 0 | E61: =IF(C61>Quote!$D$12,0,IF(C61=$F$29,$E$28,I60)) -> 0 | F61: =IF(C61>Quote!$D$12,0,IF(F60>0,F60*(1+Quote!$D$16),IF($F$29=C61,$F$30,0))) -> 0 | G61: 0 | H61: 0 | I61: 0 | J61: =IF(C61=Quote!$D$12,I61,0) -> 0
B62: 30 | C62: 59 | D62: =IF(Quote!$D$10=Calcs!C62,Calcs!$D$30*(1+Calcs!$D$29)^B61,0) -> 0 | E62: =IF(C62>Quote!$D$12,0,IF(C62=$F$29,$E$28,I61)) -> 0 | F62: =IF(C62>Quote!$D$12,0,IF(F61>0,F61*(1+Quote!$D$16),IF($F$29=C62,$F$30,0))) -> 0 | G62: 0 | H62: 0 | I62: 0 | J62: =IF(C62=Quote!$D$12,I62,0) -> 0
B63: 31 | C63: 60 | D63: =IF(Quote!$D$10=Calcs!C63,Calcs!$D$30*(1+Calcs!$D$29)^B62,0) -> 5.743491173 | E63: =IF(C63>Quote!$D$12,0,IF(C63=$F$29,$E$28,I62)) -> 1194.75459 | F63: =IF(C63>Quote!$D$12,0,IF(F62>0,F62*(1+Quote!$D$16),IF($F$29=C63,$F$30,0))) -> 68.92189407 | G63: 1125.832696 | H63: 112.5832696 | I63: 1238.415966 | J63: =IF(C63=Quote!$D$12,I63,0) -> 0
B64: 32 | C64: 61 | D64: =IF(Quote!$D$10=Calcs!C64,Calcs!$D$30*(1+Calcs!$D$29)^B63,0) -> 0 | E64: =IF(C64>Quote!$D$12,0,IF(C64=$F$29,$E$28,I63)) -> 1238.415966 | F64: =IF(C64>Quote!$D$12,0,IF(F63>0,F63*(1+Quote!$D$16),IF($F$29=C64,$F$30,0))) -> 73.05720772 | G64: 1165.358758 | H64: 116.5358758 | I64: 1281.894634 | J64: =IF(C64=Quote!$D$12,I64,0) -> 0
B65: 33 | C65: 62 | D65: =IF(Quote!$D$10=Calcs!C65,Calcs!$D$30*(1+Calcs!$D$29)^B64,0) -> 0 | E65: =IF(C65>Quote!$D$12,0,IF(C65=$F$29,$E$28,I64)) -> 1281.894634 | F65: =IF(C65>Quote!$D$12,0,IF(F64>0,F64*(1+Quote!$D$16),IF($F$29=C65,$F$30,0))) -> 77.44064018 | G65: 1204.453994 | H65: 120.4453994 | I65: 1324.899393 | J65: =IF(C65=Quote!$D$12,I65,0) -> 0
B66: 34 | C66: 63 | D66: =IF(Quote!$D$10=Calcs!C66,Calcs!$D$30*(1+Calcs!$D$29)^B65,0) -> 0 | E66: =IF(C66>Quote!$D$12,0,IF(C66=$F$29,$E$28,I65)) -> 1324.899393 | F66: =IF(C66>Quote!$D$12,0,IF(F65>0,F65*(1+Quote!$D$16),IF($F$29=C66,$F$30,0))) -> 82.08707859 | G66: 1242.812314 | H66: 124.2812314 | I66: 1367.093546 | J66: =IF(C66=Quote!$D$12,I66,0) -> 0
B67: 35 | C67: 64 | D67: =IF(Quote!$D$10=Calcs!C67,Calcs!$D$30*(1+Calcs!$D$29)^B66,0) -> 0 | E67: =IF(C67>Quote!$D$12,0,IF(C67=$F$29,$E$28,I66)) -> 1367.093546 | F67: =IF(C67>Quote!$D$12,0,IF(F66>0,F66*(1+Quote!$D$16),IF($F$29=C67,$F$30,0))) -> 87.01230331 | G67: 1280.081242 | H67: 128.0081242 | I67: 1408.089367 | J67: =IF(C67=Quote!$D$12,I67,0) -> 0
B68: 36 | C68: 65 | D68: =IF(Quote!$D$10=Calcs!C68,Calcs!$D$30*(1+Calcs!$D$29)^B67,0) -> 0 | E68: =IF(C68>Quote!$D$12,0,IF(C68=$F$29,$E$28,I67)) -> 1408.089367 | F68: =IF(C68>Quote!$D$12,0,IF(F67>0,F67*(1+Quote!$D$16),IF($F$29=C68,$F$30,0))) -> 92.23304151 | G68: 1315.856325 | H68: 131.5856325 | I68: 1447.441958 | J68: =IF(C68=Quote!$D$12,I68,0) -> 0
B69: 37 | C69: 66 | D69: =IF(Quote!$D$10=Calcs!C69,Calcs!$D$30*(1+Calcs!$D$29)^B68,0) -> 0 | E69: =IF(C69>Quote!$D$12,0,IF(C69=$F$29,$E$28,I68)) -> 1447.441958 | F69: =IF(C69>Quote!$D$12,0,IF(F68>0,F68*(1+Quote!$D$16),IF($F$29=C69,$F$30,0))) -> 97.767024 | G69: 1349.674934 | H69: 134.9674934 | I69: 1484.642427 | J69: =IF(C69=Quote!$D$12,I69,0) -> 0
B70: 38 | C70: 67 | D70: =IF(Quote!$D$10=Calcs!C70,Calcs!$D$30*(1+Calcs!$D$29)^B69,0) -> 0 | E70: =IF(C70>Quote!$D$12,0,IF(C70=$F$29,$E$28,I69)) -> 1484.642427 | F70: =IF(C70>Quote!$D$12,0,IF(F69>0,F69*(1+Quote!$D$16),IF($F$29=C70,$F$30,0))) -> 103.6330454 | G70: 1381.009382 | H70: 138.1009382 | I70: 1519.11032 | J70: =IF(C70=Quote!$D$12,I70,0) -> 0
B71: 39 | C71: 68 | D71: =IF(Quote!$D$10=Calcs!C71,Calcs!$D$30*(1+Calcs!$D$29)^B70,0) -> 0 | E71: =IF(C71>Quote!$D$12,0,IF(C71=$F$29,$E$28,I70)) -> 1519.11032 | F71: =IF(C71>Quote!$D$12,0,IF(F70>0,F70*(1+Quote!$D$16),IF($F$29=C71,$F$30,0))) -> 109.8510282 | G71: 1409.259292 | H71: 140.9259292 | I71: 1550.185221 | J71: =IF(C71=Quote!$D$12,I71,0) -> 0
B72: 40 | C72: 69 | D72: =IF(Quote!$D$10=Calcs!C72,Calcs!$D$30*(1+Calcs!$D$29)^B71,0) -> 0 | E72: =IF(C72>Quote!$D$12,0,IF(C72=$F$29,$E$28,I71)) -> 1550.185221 | F72: =IF(C72>Quote!$D$12,0,IF(F71>0,F71*(1+Quote!$D$16),IF($F$29=C72,$F$30,0))) -> 116.4420899 | G72: 1433.743131 | H72: 143.3743131 | I72: 1577.117444 | J72: =IF(C72=Quote!$D$12,I72,0) -> 0
B73: 41 | C73: 70 | D73: =IF(Quote!$D$10=Calcs!C73,Calcs!$D$30*(1+Calcs!$D$29)^B72,0) -> 0 | E73: =IF(C73>Quote!$D$12,0,IF(C73=$F$29,$E$28,I72)) -> 1577.117444 | F73: =IF(C73>Quote!$D$12,0,IF(F72>0,F72*(1+Quote!$D$16),IF($F$29=C73,$F$30,0))) -> 123.4286152 | G73: 1453.688829 | H73: 145.3688829 | I73: 1599.057712 | J73: =IF(C73=Quote!$D$12,I73,0) -> 0
B74: 42 | C74: 71 | D74: =IF(Quote!$D$10=Calcs!C74,Calcs!$D$30*(1+Calcs!$D$29)^B73,0) -> 0 | E74: =IF(C74>Quote!$D$12,0,IF(C74=$F$29,$E$28,I73)) -> 1599.057712 | F74: =IF(C74>Quote!$D$12,0,IF(F73>0,F73*(1+Quote!$D$16),IF($F$29=C74,$F$30,0))) -> 130.8343322 | G74: 1468.22338 | H74: 146.822338 | I74: 1615.045718 | J74: =IF(C74=Quote!$D$12,I74,0) -> 0
B75: 43 | C75: 72 | D75: =IF(Quote!$D$10=Calcs!C75,Calcs!$D$30*(1+Calcs!$D$29)^B74,0) -> 0 | E75: =IF(C75>Quote!$D$12,0,IF(C75=$F$29,$E$28,I74)) -> 1615.045718 | F75: =IF(C75>Quote!$D$12,0,IF(F74>0,F74*(1+Quote!$D$16),IF($F$29=C75,$F$30,0))) -> 138.6843921 | G75: 1476.361325 | H75: 147.6361325 | I75: 1623.997458 | J75: =IF(C75=Quote!$D$12,I75,0) -> 0
B76: 44 | C76: 73 | D76: =IF(Quote!$D$10=Calcs!C76,Calcs!$D$30*(1+Calcs!$D$29)^B75,0) -> 0 | E76: =IF(C76>Quote!$D$12,0,IF(C76=$F$29,$E$28,I75)) -> 1623.997458 | F76: =IF(C76>Quote!$D$12,0,IF(F75>0,F75*(1+Quote!$D$16),IF($F$29=C76,$F$30,0))) -> 147.0054556 | G76: 1476.992002 | H76: 147.6992002 | I76: 1624.691203 | J76: =IF(C76=Quote!$D$12,I76,0) -> 0
B77: 45 | C77: 74 | D77: =IF(Quote!$D$10=Calcs!C77,Calcs!$D$30*(1+Calcs!$D$29)^B76,0) -> 0 | E77: =IF(C77>Quote!$D$12,0,IF(C77=$F$29,$E$28,I76)) -> 1624.691203 | F77: =IF(C77>Quote!$D$12,0,IF(F76>0,F76*(1+Quote!$D$16),IF($F$29=C77,$F$30,0))) -> 155.825783 | G77: 1468.86542 | H77: 146.886542 | I77: 1615.751962 | J77: =IF(C77=Quote!$D$12,I77,0) -> 0
B78: 46 | C78: 75 | D78: =IF(Quote!$D$10=Calcs!C78,Calcs!$D$30*(1+Calcs!$D$29)^B77,0) -> 0 | E78: =IF(C78>Quote!$D$12,0,IF(C78=$F$29,$E$28,I77)) -> 1615.751962 | F78: =IF(C78>Quote!$D$12,0,IF(F77>0,F77*(1+Quote!$D$16),IF($F$29=C78,$F$30,0))) -> 165.1753299 | G78: 1450.576632 | H78: 145.0576632 | I78: 1595.634295 | J78: =IF(C78=Quote!$D$12,I78,0) -> 0
B79: 47 | C79: 76 | D79: =IF(Quote!$D$10=Calcs!C79,Calcs!$D$30*(1+Calcs!$D$29)^B78,0) -> 0 | E79: =IF(C79>Quote!$D$12,0,IF(C79=$F$29,$E$28,I78)) -> 1595.634295 | F79: =IF(C79>Quote!$D$12,0,IF(F78>0,F78*(1+Quote!$D$16),IF($F$29=C79,$F$30,0))) -> 175.0858497 | G79: 1420.548445 | H79: 142.0548445 | I79: 1562.60329 | J79: =IF(C79=Quote!$D$12,I79,0) -> 0
B80: 48 | C80: 77 | D80: =IF(Quote!$D$10=Calcs!C80,Calcs!$D$30*(1+Calcs!$D$29)^B79,0) -> 0 | E80: =IF(C80>Quote!$D$12,0,IF(C80=$F$29,$E$28,I79)) -> 1562.60329 | F80: =IF(C80>Quote!$D$12,0,IF(F79>0,F79*(1+Quote!$D$16),IF($F$29=C80,$F$30,0))) -> 185.5910007 | G80: 1377.012289 | H80: 137.7012289 | I80: 1514.713518 | J80: =IF(C80=Quote!$D$12,I80,0) -> 0
B81: 49 | C81: 78 | D81: =IF(Quote!$D$10=Calcs!C81,Calcs!$D$30*(1+Calcs!$D$29)^B80,0) -> 0 | E81: =IF(C81>Quote!$D$12,0,IF(C81=$F$29,$E$28,I80)) -> 1514.713518 | F81: =IF(C81>Quote!$D$12,0,IF(F80>0,F80*(1+Quote!$D$16),IF($F$29=C81,$F$30,0))) -> 196.7264608 | G81: 1317.987057 | H81: 131.7987057 | I81: 1449.785763 | J81: =IF(C81=Quote!$D$12,I81,0) -> 0
B82: 50 | C82: 79 | D82: =IF(Quote!$D$10=Calcs!C82,Calcs!$D$30*(1+Calcs!$D$29)^B81,0) -> 0 | E82: =IF(C82>Quote!$D$12,0,IF(C82=$F$29,$E$28,I81)) -> 1449.785763 | F82: =IF(C82>Quote!$D$12,0,IF(F81>0,F81*(1+Quote!$D$16),IF($F$29=C82,$F$30,0))) -> 208.5300484 | G82: 1241.255714 | H82: 124.1255714 | I82: 1365.381286 | J82: =IF(C82=Quote!$D$12,I82,0) -> 0
B83: 51 | C83: 80 | D83: =IF(Quote!$D$10=Calcs!C83,Calcs!$D$30*(1+Calcs!$D$29)^B82,0) -> 0 | E83: =IF(C83>Quote!$D$12,0,IF(C83=$F$29,$E$28,I82)) -> 1365.381286 | F83: =IF(C83>Quote!$D$12,0,IF(F82>0,F82*(1+Quote!$D$16),IF($F$29=C83,$F$30,0))) -> 221.0418513 | G83: 1144.339435 | H83: 114.4339435 | I83: 1258.773378 | J83: =IF(C83=Quote!$D$12,I83,0) -> 0
B84: 52 | C84: 81 | D84: =IF(Quote!$D$10=Calcs!C84,Calcs!$D$30*(1+Calcs!$D$29)^B83,0) -> 0 | E84: =IF(C84>Quote!$D$12,0,IF(C84=$F$29,$E$28,I83)) -> 1258.773378 | F84: =IF(C84>Quote!$D$12,0,IF(F83>0,F83*(1+Quote!$D$16),IF($F$29=C84,$F$30,0))) -> 234.3043624 | G84: 1024.469016 | H84: 102.4469016 | I84: 1126.915917 | J84: =IF(C84=Quote!$D$12,I84,0) -> 0
B85: 53 | C85: 82 | D85: =IF(Quote!$D$10=Calcs!C85,Calcs!$D$30*(1+Calcs!$D$29)^B84,0) -> 0 | E85: =IF(C85>Quote!$D$12,0,IF(C85=$F$29,$E$28,I84)) -> 1126.915917 | F85: =IF(C85>Quote!$D$12,0,IF(F84>0,F84*(1+Quote!$D$16),IF($F$29=C85,$F$30,0))) -> 248.3626241 | G85: 878.5532931 | H85: 87.85532931 | I85: 966.4086224 | J85: =IF(C85=Quote!$D$12,I85,0) -> 0
B86: 54 | C86: 83 | D86: =IF(Quote!$D$10=Calcs!C86,Calcs!$D$30*(1+Calcs!$D$29)^B85,0) -> 0 | E86: =IF(C86>Quote!$D$12,0,IF(C86=$F$29,$E$28,I85)) -> 966.4086224 | F86: =IF(C86>Quote!$D$12,0,IF(F85>0,F85*(1+Quote!$D$16),IF($F$29=C86,$F$30,0))) -> 263.2643816 | G86: 703.1442409 | H86: 70.31442409 | I86: 773.4586649 | J86: =IF(C86=Quote!$D$12,I86,0) -> 0
B87: 55 | C87: 84 | D87: =IF(Quote!$D$10=Calcs!C87,Calcs!$D$30*(1+Calcs!$D$29)^B86,0) -> 0 | E87: =IF(C87>Quote!$D$12,0,IF(C87=$F$29,$E$28,I86)) -> 773.4586649 | F87: =IF(C87>Quote!$D$12,0,IF(F86>0,F86*(1+Quote!$D$16),IF($F$29=C87,$F$30,0))) -> 279.0602445 | G87: 494.3984205 | H87: 49.43984205 | I87: 543.8382625 | J87: =IF(C87=Quote!$D$12,I87,0) -> 0
B88: 56 | C88: 85 | D88: =IF(Quote!$D$10=Calcs!C88,Calcs!$D$30*(1+Calcs!$D$29)^B87,0) -> 0 | E88: =IF(C88>Quote!$D$12,0,IF(C88=$F$29,$E$28,I87)) -> 543.8382625 | F88: =IF(C88>Quote!$D$12,0,IF(F87>0,F87*(1+Quote!$D$16),IF($F$29=C88,$F$30,0))) -> 295.8038591 | G88: 248.0344034 | H88: 24.80344034 | I88: 272.8378437 | J88: =IF(C88=Quote!$D$12,I88,0) -> 272.8378437
B89: 57 | C89: 86 | D89: =IF(Quote!$D$10=Calcs!C89,Calcs!$D$30*(1+Calcs!$D$29)^B88,0) -> 0 | E89: =IF(C89>Quote!$D$12,0,IF(C89=$F$29,$E$28,I88)) -> 0 | F89: =IF(C89>Quote!$D$12,0,IF(F88>0,F88*(1+Quote!$D$16),IF($F$29=C89,$F$30,0))) -> 0 | G89: 0 | H89: 0 | I89: 0 | J89: =IF(C89=Quote!$D$12,I89,0) -> 0
B90: 58 | C90: 87 | D90: =IF(Quote!$D$10=Calcs!C90,Calcs!$D$30*(1+Calcs!$D$29)^B89,0) -> 0 | E90: =IF(C90>Quote!$D$12,0,IF(C90=$F$29,$E$28,I89)) -> 0 | F90: =IF(C90>Quote!$D$12,0,IF(F89>0,F89*(1+Quote!$D$16),IF($F$29=C90,$F$30,0))) -> 0 | G90: 0 | H90: 0 | I90: 0 | J90: =IF(C90=Quote!$D$12,I90,0) -> 0
B91: 59 | C91: 88 | D91: =IF(Quote!$D$10=Calcs!C91,Calcs!$D$30*(1+Calcs!$D$29)^B90,0) -> 0 | E91: =IF(C91>Quote!$D$12,0,IF(C91=$F$29,$E$28,I90)) -> 0 | F91: =IF(C91>Quote!$D$12,0,IF(F90>0,F90*(1+Quote!$D$16),IF($F$29=C91,$F$30,0))) -> 0 | G91: 0 | H91: 0 | I91: 0 | J91: =IF(C91=Quote!$D$12,I91,0) -> 0
B92: 60 | C92: 89 | D92: =IF(Quote!$D$10=Calcs!C92,Calcs!$D$30*(1+Calcs!$D$29)^B91,0) -> 0 | E92: =IF(C92>Quote!$D$12,0,IF(C92=$F$29,$E$28,I91)) -> 0 | F92: =IF(C92>Quote!$D$12,0,IF(F91>0,F91*(1+Quote!$D$16),IF($F$29=C92,$F$30,0))) -> 0 | G92: 0 | H92: 0 | I92: 0 | J92: =IF(C92=Quote!$D$12,I92,0) -> 0
B93: 61 | C93: 90 | D93: =IF(Quote!$D$10=Calcs!C93,Calcs!$D$30*(1+Calcs!$D$29)^B92,0) -> 0 | E93: =IF(C93>Quote!$D$12,0,IF(C93=$F$29,$E$28,I92)) -> 0 | F93: =IF(C93>Quote!$D$12,0,IF(F92>0,F92*(1+Quote!$D$16),IF($F$29=C93,$F$30,0))) -> 0 | G93: 0 | H93: 0 | I93: 0 | J93: =IF(C93=Quote!$D$12,I93,0) -> 0
B94: 62 | C94: 91 | D94: =IF(Quote!$D$10=Calcs!C94,Calcs!$D$30*(1+Calcs!$D$29)^B93,0) -> 0 | E94: =IF(C94>Quote!$D$12,0,IF(C94=$F$29,$E$28,I93)) -> 0 | F94: =IF(C94>Quote!$D$12,0,IF(F93>0,F93*(1+Quote!$D$16),IF($F$29=C94,$F$30,0))) -> 0 | G94: 0 | H94: 0 | I94: 0 | J94: =IF(C94=Quote!$D$12,I94,0) -> 0
B95: 63 | C95: 92 | D95: =IF(Quote!$D$10=Calcs!C95,Calcs!$D$30*(1+Calcs!$D$29)^B94,0) -> 0 | E95: =IF(C95>Quote!$D$12,0,IF(C95=$F$29,$E$28,I94)) -> 0 | F95: =IF(C95>Quote!$D$12,0,IF(F94>0,F94*(1+Quote!$D$16),IF($F$29=C95,$F$30,0))) -> 0 | G95: 0 | H95: 0 | I95: 0 | J95: =IF(C95=Quote!$D$12,I95,0) -> 0
B96: 64 | C96: 93 | D96: =IF(Quote!$D$10=Calcs!C96,Calcs!$D$30*(1+Calcs!$D$29)^B95,0) -> 0 | E96: =IF(C96>Quote!$D$12,0,IF(C96=$F$29,$E$28,I95)) -> 0 | F96: =IF(C96>Quote!$D$12,0,IF(F95>0,F95*(1+Quote!$D$16),IF($F$29=C96,$F$30,0))) -> 0 | G96: 0 | H96: 0 | I96: 0 | J96: =IF(C96=Quote!$D$12,I96,0) -> 0
B97: 65 | C97: 94 | D97: =IF(Quote!$D$10=Calcs!C97,Calcs!$D$30*(1+Calcs!$D$29)^B96,0) -> 0 | E97: =IF(C97>Quote!$D$12,0,IF(C97=$F$29,$E$28,I96)) -> 0 | F97: =IF(C97>Quote!$D$12,0,IF(F96>0,F96*(1+Quote!$D$16),IF($F$29=C97,$F$30,0))) -> 0 | G97: 0 | H97: 0 | I97: 0 | J97: =IF(C97=Quote!$D$12,I97,0) -> 0
B98: 66 | C98: 95 | D98: =IF(Quote!$D$10=Calcs!C98,Calcs!$D$30*(1+Calcs!$D$29)^B97,0) -> 0 | E98: =IF(C98>Quote!$D$12,0,IF(C98=$F$29,$E$28,I97)) -> 0 | F98: =IF(C98>Quote!$D$12,0,IF(F97>0,F97*(1+Quote!$D$16),IF($F$29=C98,$F$30,0))) -> 0 | G98: =E98-F98 -> 0 | H98: =G98*$H$28 -> 0 | I98: =G98+H98 -> 0 | J98: =IF(C98=Quote!$D$12,I98,0) -> 0
B99: 67 | C99: =C98+1 -> 96 | D99: =IF(Quote!$D$10=Calcs!C99,Calcs!$D$30*(1+Calcs!$D$29)^B98,0) -> 0 | E99: =IF(C99>Quote!$D$12,0,IF(C99=$F$29,$E$28,I98)) -> 0 | F99: =IF(C99>Quote!$D$12,0,IF(F98>0,F98*(1+Quote!$D$16),IF($F$29=C99,$F$30,0))) -> 0 | G99: 0 | H99: 0 | I99: 0 | J99: =IF(C99=Quote!$D$12,I99,0) -> 0
B100: 68 | C100: 97 | D100: =IF(Quote!$D$10=Calcs!C100,Calcs!$D$30*(1+Calcs!$D$29)^B99,0) -> 0 | E100: =IF(C100>Quote!$D$12,0,IF(C100=$F$29,$E$28,I99)) -> 0 | F100: =IF(C100>Quote!$D$12,0,IF(F99>0,F99*(1+Quote!$D$16),IF($F$29=C100,$F$30,0))) -> 0 | G100: 0 | H100: 0 | I100: 0 | J100: =IF(C100=Quote!$D$12,I100,0) -> 0
B101: 69 | C101: 98 | D101: =IF(Quote!$D$10=Calcs!C101,Calcs!$D$30*(1+Calcs!$D$29)^B100,0) -> 0 | E101: =IF(C101>Quote!$D$12,0,IF(C101=$F$29,$E$28,I100)) -> 0 | F101: =IF(C101>Quote!$D$12,0,IF(F100>0,F100*(1+Quote!$D$16),IF($F$29=C101,$F$30,0))) -> 0 | G101: 0 | H101: 0 | I101: 0 | J101: =IF(C101=Quote!$D$12,I101,0) -> 0
B102: 70 | C102: 99 | D102: =IF(Quote!$D$10=Calcs!C102,Calcs!$D$30*(1+Calcs!$D$29)^B101,0) -> 0 | E102: =IF(C102>Quote!$D$12,0,IF(C102=$F$29,$E$28,I101)) -> 0 | F102: =IF(C102>Quote!$D$12,0,IF(F101>0,F101*(1+Quote!$D$16),IF($F$29=C102,$F$30,0))) -> 0 | G102: 0 | H102: 0 | I102: 0 | J102: =IF(C102=Quote!$D$12,I102,0) -> 0
B103: 71 | C103: 100 | D103: =IF(Quote!$D$10=Calcs!C103,Calcs!$D$30*(1+Calcs!$D$29)^B102,0) -> 0 | E103: =IF(C103>Quote!$D$12,0,IF(C103=$F$29,$E$28,I102)) -> 0 | F103: =IF(C103>Quote!$D$12,0,IF(F102>0,F102*(1+Quote!$D$16),IF($F$29=C103,$F$30,0))) -> 0 | G103: 0 | H103: 0 | I103: 0 | J103: =IF(C103=Quote!$D$12,I103,0) -> 0
B104: 72 | C104: 101 | D104: =IF(Quote!$D$10=Calcs!C104,Calcs!$D$30*(1+Calcs!$D$29)^B103,0) -> 0 | E104: =IF(C104>Quote!$D$12,0,IF(C104=$F$29,$E$28,I103)) -> 0 | F104: =IF(C104>Quote!$D$12,0,IF(F103>0,F103*(1+Quote!$D$16),IF($F$29=C104,$F$30,0))) -> 0 | G104: 0 | H104: 0 | I104: 0 | J104: =IF(C104=Quote!$D$12,I104,0) -> 0
B105: 73 | C105: 102 | D105: =IF(Quote!$D$10=Calcs!C105,Calcs!$D$30*(1+Calcs!$D$29)^B104,0) -> 0 | E105: =IF(C105>Quote!$D$12,0,IF(C105=$F$29,$E$28,I104)) -> 0 | F105: =IF(C105>Quote!$D$12,0,IF(F104>0,F104*(1+Quote!$D$16),IF($F$29=C105,$F$30,0))) -> 0 | G105: 0 | H105: 0 | I105: 0 | J105: =IF(C105=Quote!$D$12,I105,0) -> 0
B106: 74 | C106: 103 | D106: =IF(Quote!$D$10=Calcs!C106,Calcs!$D$30*(1+Calcs!$D$29)^B105,0) -> 0 | E106: =IF(C106>Quote!$D$12,0,IF(C106=$F$29,$E$28,I105)) -> 0 | F106: =IF(C106>Quote!$D$12,0,IF(F105>0,F105*(1+Quote!$D$16),IF($F$29=C106,$F$30,0))) -> 0 | G106: 0 | H106: 0 | I106: 0 | J106: =IF(C106=Quote!$D$12,I106,0) -> 0
B107: 75 | C107: 104 | D107: =IF(Quote!$D$10=Calcs!C107,Calcs!$D$30*(1+Calcs!$D$29)^B106,0) -> 0 | E107: =IF(C107>Quote!$D$12,0,IF(C107=$F$29,$E$28,I106)) -> 0 | F107: =IF(C107>Quote!$D$12,0,IF(F106>0,F106*(1+Quote!$D$16),IF($F$29=C107,$F$30,0))) -> 0 | G107: 0 | H107: 0 | I107: 0 | J107: =IF(C107=Quote!$D$12,I107,0) -> 0
B108: 76 | C108: 105 | D108: =IF(Quote!$D$10=Calcs!C108,Calcs!$D$30*(1+Calcs!$D$29)^B107,0) -> 0 | E108: =IF(C108>Quote!$D$12,0,IF(C108=$F$29,$E$28,I107)) -> 0 | F108: =IF(C108>Quote!$D$12,0,IF(F107>0,F107*(1+Quote!$D$16),IF($F$29=C108,$F$30,0))) -> 0 | G108: 0 | H108: 0 | I108: 0 | J108: =IF(C108=Quote!$D$12,I108,0) -> 0
B109: 77 | C109: 106 | D109: =IF(Quote!$D$10=Calcs!C109,Calcs!$D$30*(1+Calcs!$D$29)^B108,0) -> 0 | E109: =IF(C109>Quote!$D$12,0,IF(C109=$F$29,$E$28,I108)) -> 0 | F109: =IF(C109>Quote!$D$12,0,IF(F108>0,F108*(1+Quote!$D$16),IF($F$29=C109,$F$30,0))) -> 0 | G109: 0 | H109: 0 | I109: 0 | J109: =IF(C109=Quote!$D$12,I109,0) -> 0
B110: 78 | C110: 107 | D110: =IF(Quote!$D$10=Calcs!C110,Calcs!$D$30*(1+Calcs!$D$29)^B109,0) -> 0 | E110: =IF(C110>Quote!$D$12,0,IF(C110=$F$29,$E$28,I109)) -> 0 | F110: =IF(C110>Quote!$D$12,0,IF(F109>0,F109*(1+Quote!$D$16),IF($F$29=C110,$F$30,0))) -> 0 | G110: 0 | H110: 0 | I110: 0 | J110: =IF(C110=Quote!$D$12,I110,0) -> 0
B111: 79 | C111: 108 | D111: =IF(Quote!$D$10=Calcs!C111,Calcs!$D$30*(1+Calcs!$D$29)^B110,0) -> 0 | E111: =IF(C111>Quote!$D$12,0,IF(C111=$F$29,$E$28,I110)) -> 0 | F111: =IF(C111>Quote!$D$12,0,IF(F110>0,F110*(1+Quote!$D$16),IF($F$29=C111,$F$30,0))) -> 0 | G111: 0 | H111: 0 | I111: 0 | J111: =IF(C111=Quote!$D$12,I111,0) -> 0
B112: 80 | C112: 109 | D112: =IF(Quote!$D$10=Calcs!C112,Calcs!$D$30*(1+Calcs!$D$29)^B111,0) -> 0 | E112: =IF(C112>Quote!$D$12,0,IF(C112=$F$29,$E$28,I111)) -> 0 | F112: =IF(C112>Quote!$D$12,0,IF(F111>0,F111*(1+Quote!$D$16),IF($F$29=C112,$F$30,0))) -> 0 | G112: 0 | H112: 0 | I112: 0 | J112: =IF(C112=Quote!$D$12,I112,0) -> 0
B113: 81 | C113: 110 | D113: =IF(Quote!$D$10=Calcs!C113,Calcs!$D$30*(1+Calcs!$D$29)^B112,0) -> 0 | E113: =IF(C113>Quote!$D$12,0,IF(C113=$F$29,$E$28,I112)) -> 0 | F113: =IF(C113>Quote!$D$12,0,IF(F112>0,F112*(1+Quote!$D$16),IF($F$29=C113,$F$30,0))) -> 0 | G113: 0 | H113: 0 | I113: 0 | J113: =IF(C113=Quote!$D$12,I113,0) -> 0
B117: Future Value = | C117: =C121*(1+C123)^C119*((1-((1+C124)^-12))/(C124/(1+C124)))*((1-((1+C126)^-C119))/(C126/(1+C126)))+(C120*(1+C123)^C119) -> 0
B119: Term (years) | C119: =FV!D19 -> 5 | D119: n
B120: Single Premium / Present Value | C120: =FV!D17 -> 0 | D120: S
B121: Recurring Premium | C121: =FV!D13 -> 0 | D121: P
B122: Premium Escalation | C122: =FV!D15 -> 0.05 | D122: e
B123: Portfolio Growth (annual) | C123: =FV!D21 -> 0.1 | D123: i
B124: Portfolio Growth (monthly) | C124: =((1+C123)^(1/12))-1 -> 0.007974140429 | D124: m
B126: J = | C126: =((1+(C123+0.0000000001))/(1+C122))-1 -> 0.04761904771 | D126: J
B129: Future Value = | C129: =C133*(1+C135)^C131*((1-((1+C136)^-12))/(C136/(1+C136)))*((1-((1+C138)^-C131))/(C138/(1+C138)))+(C132*(1+C135)^C131) -> 0 | F129: Future Value = | G129: =IF(Term!D22=0,0,G133*(1+G135)^G131*((1-((1+G136)^-12))/(G136/(1+G136)))*((1-((1+G138)^-G131))/(G138/(1+G138)))+(G132*(1+G135)^G131)) -> 0 | J129: Future Value = | K129: =IF(Term!D24=0,0,K133*(1+K135)^K131*((1-((1+K136)^-12))/(K136/(1+K136)))*((1-((1+K138)^-K131))/(K138/(1+K138)))+(K132*(1+K135)^K131)) -> 0
B131: Term (years) | C131: =Term!D13-General!D9 -> 30 | D131: n | F131: Term (years) | G131: =C131 -> 30 | H131: n | J131: Term (years) | K131: =C131 -> 30 | L131: n
B132: Single Premium / Present Value | C132: =Term!D30 -> 0 | D132: S | F132: Single Premium / Present Value | G132: =Term!D22 -> 0 | H132: S | J132: Single Premium / Present Value | K132: =Term!D24 -> 0 | L132: S
B133: Recurring Premium | C133: =Term!D26 -> 0 | D133: P | F133: Recurring Premium | G133: 0 | H133: P | J133: Recurring Premium | K133: 0 | L133: P
B134: Premium Escalation | C134: =Term!D28 -> 0.05 | D134: e | F134: Premium Escalation | G134: 0 | H134: e | J134: Premium Escalation | K134: 0 | L134: e
B135: Portfolio Growth (annual) | C135: =Term!D32+0.0000000001 -> 0.1000000001 | D135: i | F135: Portfolio Growth (annual) | G135: =Term!F22+0.0000000001 -> 1e-10 | H135: i | J135: Portfolio Growth (annual) | K135: =Term!F24+0.0000000001 -> 1e-10 | L135: i
B136: Portfolio Growth (monthly) | C136: =((1+C135)^(1/12))-1 -> 0.007974140437 | D136: m | F136: Portfolio Growth (monthly) | G136: =((1+G135)^(1/12))-1 -> 8.333334023e-12 | H136: m | J136: Portfolio Growth (monthly) | K136: =((1+K135)^(1/12))-1 -> 8.333334023e-12 | L136: m
B138: J = | C138: =((1+(C135+0.0000000001))/(1+C134))-1 -> 0.04761904781 | D138: J | F138: J = | G138: =((1+(G135+0.0000000001))/(1+G134))-1 -> 2.000000165e-10 | H138: J | J138: J = | K138: =((1+(K135+0.0000000001))/(1+K134))-1 -> 2.000000165e-10 | L138: J
B140: Consumer price index | C140: =C141/1000 -> 0.06
C141: 60
B144: Term | C144: Age | D144: Income | E144: Capital | F144: Income | G144: Capital | H144: Capital | I144: Capital | J144: Income to age
B145: (years) | C145: =General!D9 -> 30 | D145: required | E145: begin | F145: required | G145: after income | H145: growth | I145: year end | J145: =MAX(J150:J230) -> 0
D146: CPI | E146: =C129+G129+K129 -> 0 | F146: first retirement year | H146: =Term!D34 -> 0.1
D147: =Calcs!C140 -> 0.06 | F147: =Term!D13 -> 60
D148: =Term!D11*12 -> 12 | F148: =MAX(D150:D230) -> 68.92189407
B150: 1 | C150: =C145 -> 30 | D150: =IF(Term!D13=Calcs!C150,Calcs!D148,0) -> 0 | E150: =IF(C150=F147,E146,0) -> 0 | F150: =IF(F147=C150,F148,0) -> 0 | G150: =E150-F150 -> 0 | H150: =G150*$H$146 -> 0 | I150: =G150+H150 -> 0 | J150: =IF(I150>0,C150,0) -> 0
B151: 2 | C151: =C150+1 -> 31 | D151: =IF(Term!$D$13=Calcs!C151,$D$148*(1+$D$147)^B150,0) -> 0 | E151: =IF(C151<Term!$D$13,0,IF(C151=$F$147,$E$146,I150)) -> 0 | F151: =IF(C151<$F$147,0,IF(F150>0,F150*(1+Term!$D$15),IF($F$147=C151,$F$148,0))) -> 0 | G151: =E151-F151 -> 0 | H151: =G151*$H$146 -> 0 | I151: =G151+H151 -> 0 | J151: =IF(I151>0,C151,0) -> 0
B152: 3 | C152: =C151+1 -> 32 | D152: =IF(Term!$D$13=Calcs!C152,$D$148*(1+$D$147)^B151,0) -> 0 | E152: =IF(C152<Term!$D$13,0,IF(C152=$F$147,$E$146,I151)) -> 0 | F152: =IF(C152<$F$147,0,IF(F151>0,F151*(1+Term!$D$15),IF($F$147=C152,$F$148,0))) -> 0 | G152: 0 | H152: 0 | I152: 0 | J152: 0
B153: 4 | C153: 33 | D153: =IF(Term!$D$13=Calcs!C153,$D$148*(1+$D$147)^B152,0) -> 0 | E153: =IF(C153<Term!$D$13,0,IF(C153=$F$147,$E$146,I152)) -> 0 | F153: =IF(C153<$F$147,0,IF(F152>0,F152*(1+Term!$D$15),IF($F$147=C153,$F$148,0))) -> 0 | G153: 0 | H153: 0 | I153: 0 | J153: 0
B154: 5 | C154: 34 | D154: =IF(Term!$D$13=Calcs!C154,$D$148*(1+$D$147)^B153,0) -> 0 | E154: =IF(C154<Term!$D$13,0,IF(C154=$F$147,$E$146,I153)) -> 0 | F154: =IF(C154<$F$147,0,IF(F153>0,F153*(1+Term!$D$15),IF($F$147=C154,$F$148,0))) -> 0 | G154: 0 | H154: 0 | I154: 0 | J154: 0
B155: 6 | C155: 35 | D155: =IF(Term!$D$13=Calcs!C155,$D$148*(1+$D$147)^B154,0) -> 0 | E155: =IF(C155<Term!$D$13,0,IF(C155=$F$147,$E$146,I154)) -> 0 | F155: =IF(C155<$F$147,0,IF(F154>0,F154*(1+Term!$D$15),IF($F$147=C155,$F$148,0))) -> 0 | G155: 0 | H155: 0 | I155: 0 | J155: 0
B156: 7 | C156: 36 | D156: =IF(Term!$D$13=Calcs!C156,$D$148*(1+$D$147)^B155,0) -> 0 | E156: =IF(C156<Term!$D$13,0,IF(C156=$F$147,$E$146,I155)) -> 0 | F156: =IF(C156<$F$147,0,IF(F155>0,F155*(1+Term!$D$15),IF($F$147=C156,$F$148,0))) -> 0 | G156: 0 | H156: 0 | I156: 0 | J156: 0
B157: 8 | C157: 37 | D157: =IF(Term!$D$13=Calcs!C157,$D$148*(1+$D$147)^B156,0) -> 0 | E157: =IF(C157<Term!$D$13,0,IF(C157=$F$147,$E$146,I156)) -> 0 | F157: =IF(C157<$F$147,0,IF(F156>0,F156*(1+Term!$D$15),IF($F$147=C157,$F$148,0))) -> 0 | G157: 0 | H157: 0 | I157: 0 | J157: 0
B158: 9 | C158: 38 | D158: =IF(Term!$D$13=Calcs!C158,$D$148*(1+$D$147)^B157,0) -> 0 | E158: =IF(C158<Term!$D$13,0,IF(C158=$F$147,$E$146,I157)) -> 0 | F158: =IF(C158<$F$147,0,IF(F157>0,F157*(1+Term!$D$15),IF($F$147=C158,$F$148,0))) -> 0 | G158: 0 | H158: 0 | I158: 0 | J158: 0
B159: 10 | C159: 39 | D159: =IF(Term!$D$13=Calcs!C159,$D$148*(1+$D$147)^B158,0) -> 0 | E159: =IF(C159<Term!$D$13,0,IF(C159=$F$147,$E$146,I158)) -> 0 | F159: =IF(C159<$F$147,0,IF(F158>0,F158*(1+Term!$D$15),IF($F$147=C159,$F$148,0))) -> 0 | G159: 0 | H159: 0 | I159: 0 | J159: 0
B160: 11 | C160: 40 | D160: =IF(Term!$D$13=Calcs!C160,$D$148*(1+$D$147)^B159,0) -> 0 | E160: =IF(C160<Term!$D$13,0,IF(C160=$F$147,$E$146,I159)) -> 0 | F160: =IF(C160<$F$147,0,IF(F159>0,F159*(1+Term!$D$15),IF($F$147=C160,$F$148,0))) -> 0 | G160: 0 | H160: 0 | I160: 0 | J160: 0
B161: 12 | C161: 41 | D161: =IF(Term!$D$13=Calcs!C161,$D$148*(1+$D$147)^B160,0) -> 0 | E161: =IF(C161<Term!$D$13,0,IF(C161=$F$147,$E$146,I160)) -> 0 | F161: =IF(C161<$F$147,0,IF(F160>0,F160*(1+Term!$D$15),IF($F$147=C161,$F$148,0))) -> 0 | G161: 0 | H161: 0 | I161: 0 | J161: 0
B162: 13 | C162: 42 | D162: =IF(Term!$D$13=Calcs!C162,$D$148*(1+$D$147)^B161,0) -> 0 | E162: =IF(C162<Term!$D$13,0,IF(C162=$F$147,$E$146,I161)) -> 0 | F162: =IF(C162<$F$147,0,IF(F161>0,F161*(1+Term!$D$15),IF($F$147=C162,$F$148,0))) -> 0 | G162: 0 | H162: 0 | I162: 0 | J162: 0
B163: 14 | C163: 43 | D163: =IF(Term!$D$13=Calcs!C163,$D$148*(1+$D$147)^B162,0) -> 0 | E163: =IF(C163<Term!$D$13,0,IF(C163=$F$147,$E$146,I162)) -> 0 | F163: =IF(C163<$F$147,0,IF(F162>0,F162*(1+Term!$D$15),IF($F$147=C163,$F$148,0))) -> 0 | G163: 0 | H163: 0 | I163: 0 | J163: 0
B164: 15 | C164: 44 | D164: =IF(Term!$D$13=Calcs!C164,$D$148*(1+$D$147)^B163,0) -> 0 | E164: =IF(C164<Term!$D$13,0,IF(C164=$F$147,$E$146,I163)) -> 0 | F164: =IF(C164<$F$147,0,IF(F163>0,F163*(1+Term!$D$15),IF($F$147=C164,$F$148,0))) -> 0 | G164: 0 | H164: 0 | I164: 0 | J164: 0
B165: 16 | C165: 45 | D165: =IF(Term!$D$13=Calcs!C165,$D$148*(1+$D$147)^B164,0) -> 0 | E165: =IF(C165<Term!$D$13,0,IF(C165=$F$147,$E$146,I164)) -> 0 | F165: =IF(C165<$F$147,0,IF(F164>0,F164*(1+Term!$D$15),IF($F$147=C165,$F$148,0))) -> 0 | G165: 0 | H165: 0 | I165: 0 | J165: 0
B166: 17 | C166: 46 | D166: =IF(Term!$D$13=Calcs!C166,$D$148*(1+$D$147)^B165,0) -> 0 | E166: =IF(C166<Term!$D$13,0,IF(C166=$F$147,$E$146,I165)) -> 0 | F166: =IF(C166<$F$147,0,IF(F165>0,F165*(1+Term!$D$15),IF($F$147=C166,$F$148,0))) -> 0 | G166: 0 | H166: 0 | I166: 0 | J166: 0
B167: 18 | C167: 47 | D167: =IF(Term!$D$13=Calcs!C167,$D$148*(1+$D$147)^B166,0) -> 0 | E167: =IF(C167<Term!$D$13,0,IF(C167=$F$147,$E$146,I166)) -> 0 | F167: =IF(C167<$F$147,0,IF(F166>0,F166*(1+Term!$D$15),IF($F$147=C167,$F$148,0))) -> 0 | G167: 0 | H167: 0 | I167: 0 | J167: 0
B168: 19 | C168: 48 | D168: =IF(Term!$D$13=Calcs!C168,$D$148*(1+$D$147)^B167,0) -> 0 | E168: =IF(C168<Term!$D$13,0,IF(C168=$F$147,$E$146,I167)) -> 0 | F168: =IF(C168<$F$147,0,IF(F167>0,F167*(1+Term!$D$15),IF($F$147=C168,$F$148,0))) -> 0 | G168: 0 | H168: 0 | I168: 0 | J168: 0
B169: 20 | C169: 49 | D169: =IF(Term!$D$13=Calcs!C169,$D$148*(1+$D$147)^B168,0) -> 0 | E169: =IF(C169<Term!$D$13,0,IF(C169=$F$147,$E$146,I168)) -> 0 | F169: =IF(C169<$F$147,0,IF(F168>0,F168*(1+Term!$D$15),IF($F$147=C169,$F$148,0))) -> 0 | G169: 0 | H169: 0 | I169: 0 | J169: 0
B170: 21 | C170: 50 | D170: =IF(Term!$D$13=Calcs!C170,$D$148*(1+$D$147)^B169,0) -> 0 | E170: =IF(C170<Term!$D$13,0,IF(C170=$F$147,$E$146,I169)) -> 0 | F170: =IF(C170<$F$147,0,IF(F169>0,F169*(1+Term!$D$15),IF($F$147=C170,$F$148,0))) -> 0 | G170: 0 | H170: 0 | I170: 0 | J170: 0
B171: 22 | C171: 51 | D171: =IF(Term!$D$13=Calcs!C171,$D$148*(1+$D$147)^B170,0) -> 0 | E171: =IF(C171<Term!$D$13,0,IF(C171=$F$147,$E$146,I170)) -> 0 | F171: =IF(C171<$F$147,0,IF(F170>0,F170*(1+Term!$D$15),IF($F$147=C171,$F$148,0))) -> 0 | G171: 0 | H171: 0 | I171: 0 | J171: 0
B172: 23 | C172: 52 | D172: =IF(Term!$D$13=Calcs!C172,$D$148*(1+$D$147)^B171,0) -> 0 | E172: =IF(C172<Term!$D$13,0,IF(C172=$F$147,$E$146,I171)) -> 0 | F172: =IF(C172<$F$147,0,IF(F171>0,F171*(1+Term!$D$15),IF($F$147=C172,$F$148,0))) -> 0 | G172: 0 | H172: 0 | I172: 0 | J172: 0
B173: 24 | C173: 53 | D173: =IF(Term!$D$13=Calcs!C173,$D$148*(1+$D$147)^B172,0) -> 0 | E173: =IF(C173<Term!$D$13,0,IF(C173=$F$147,$E$146,I172)) -> 0 | F173: =IF(C173<$F$147,0,IF(F172>0,F172*(1+Term!$D$15),IF($F$147=C173,$F$148,0))) -> 0 | G173: 0 | H173: 0 | I173: 0 | J173: 0
B174: 25 | C174: 54 | D174: =IF(Term!$D$13=Calcs!C174,$D$148*(1+$D$147)^B173,0) -> 0 | E174: =IF(C174<Term!$D$13,0,IF(C174=$F$147,$E$146,I173)) -> 0 | F174: =IF(C174<$F$147,0,IF(F173>0,F173*(1+Term!$D$15),IF($F$147=C174,$F$148,0))) -> 0 | G174: 0 | H174: 0 | I174: 0 | J174: 0
B175: 26 | C175: 55 | D175: =IF(Term!$D$13=Calcs!C175,$D$148*(1+$D$147)^B174,0) -> 0 | E175: =IF(C175<Term!$D$13,0,IF(C175=$F$147,$E$146,I174)) -> 0 | F175: =IF(C175<$F$147,0,IF(F174>0,F174*(1+Term!$D$15),IF($F$147=C175,$F$148,0))) -> 0 | G175: 0 | H175: 0 | I175: 0 | J175: 0
B176: 27 | C176: 56 | D176: =IF(Term!$D$13=Calcs!C176,$D$148*(1+$D$147)^B175,0) -> 0 | E176: =IF(C176<Term!$D$13,0,IF(C176=$F$147,$E$146,I175)) -> 0 | F176: =IF(C176<$F$147,0,IF(F175>0,F175*(1+Term!$D$15),IF($F$147=C176,$F$148,0))) -> 0 | G176: 0 | H176: 0 | I176: 0 | J176: 0
B177: 28 | C177: 57 | D177: =IF(Term!$D$13=Calcs!C177,$D$148*(1+$D$147)^B176,0) -> 0 | E177: =IF(C177<Term!$D$13,0,IF(C177=$F$147,$E$146,I176)) -> 0 | F177: =IF(C177<$F$147,0,IF(F176>0,F176*(1+Term!$D$15),IF($F$147=C177,$F$148,0))) -> 0 | G177: 0 | H177: 0 | I177: 0 | J177: 0
B178: 29 | C178: 58 | D178: =IF(Term!$D$13=Calcs!C178,$D$148*(1+$D$147)^B177,0) -> 0 | E178: =IF(C178<Term!$D$13,0,IF(C178=$F$147,$E$146,I177)) -> 0 | F178: =IF(C178<$F$147,0,IF(F177>0,F177*(1+Term!$D$15),IF($F$147=C178,$F$148,0))) -> 0 | G178: 0 | H178: 0 | I178: 0 | J178: 0
B179: 30 | C179: 59 | D179: =IF(Term!$D$13=Calcs!C179,$D$148*(1+$D$147)^B178,0) -> 0 | E179: =IF(C179<Term!$D$13,0,IF(C179=$F$147,$E$146,I178)) -> 0 | F179: =IF(C179<$F$147,0,IF(F178>0,F178*(1+Term!$D$15),IF($F$147=C179,$F$148,0))) -> 0 | G179: 0 | H179: 0 | I179: 0 | J179: 0
B180: 31 | C180: 60 | D180: =IF(Term!$D$13=Calcs!C180,$D$148*(1+$D$147)^B179,0) -> 68.92189407 | E180: =IF(C180<Term!$D$13,0,IF(C180=$F$147,$E$146,I179)) -> 0 | F180: =IF(C180<$F$147,0,IF(F179>0,F179*(1+Term!$D$15),IF($F$147=C180,$F$148,0))) -> 68.92189407 | G180: -68.92189407 | H180: -6.892189407 | I180: -75.81408348 | J180: 0
B181: 32 | C181: 61 | D181: =IF(Term!$D$13=Calcs!C181,$D$148*(1+$D$147)^B180,0) -> 0 | E181: =IF(C181<Term!$D$13,0,IF(C181=$F$147,$E$146,I180)) -> -75.81408348 | F181: =IF(C181<$F$147,0,IF(F180>0,F180*(1+Term!$D$15),IF($F$147=C181,$F$148,0))) -> 73.05720772 | G181: -148.8712912 | H181: -14.88712912 | I181: -163.7584203 | J181: 0
B182: 33 | C182: 62 | D182: =IF(Term!$D$13=Calcs!C182,$D$148*(1+$D$147)^B181,0) -> 0 | E182: =IF(C182<Term!$D$13,0,IF(C182=$F$147,$E$146,I181)) -> -163.7584203 | F182: =IF(C182<$F$147,0,IF(F181>0,F181*(1+Term!$D$15),IF($F$147=C182,$F$148,0))) -> 77.44064018 | G182: -241.1990605 | H182: -24.11990605 | I182: -265.3189666 | J182: 0
B183: 34 | C183: 63 | D183: =IF(Term!$D$13=Calcs!C183,$D$148*(1+$D$147)^B182,0) -> 0 | E183: =IF(C183<Term!$D$13,0,IF(C183=$F$147,$E$146,I182)) -> -265.3189666 | F183: =IF(C183<$F$147,0,IF(F182>0,F182*(1+Term!$D$15),IF($F$147=C183,$F$148,0))) -> 82.08707859 | G183: -347.4060451 | H183: -34.74060451 | I183: -382.1466497 | J183: 0
B184: 35 | C184: 64 | D184: =IF(Term!$D$13=Calcs!C184,$D$148*(1+$D$147)^B183,0) -> 0 | E184: =IF(C184<Term!$D$13,0,IF(C184=$F$147,$E$146,I183)) -> -382.1466497 | F184: =IF(C184<$F$147,0,IF(F183>0,F183*(1+Term!$D$15),IF($F$147=C184,$F$148,0))) -> 87.01230331 | G184: -469.158953 | H184: -46.9158953 | I184: -516.0748483 | J184: 0
B185: 36 | C185: 65 | D185: =IF(Term!$D$13=Calcs!C185,$D$148*(1+$D$147)^B184,0) -> 0 | E185: =IF(C185<Term!$D$13,0,IF(C185=$F$147,$E$146,I184)) -> -516.0748483 | F185: =IF(C185<$F$147,0,IF(F184>0,F184*(1+Term!$D$15),IF($F$147=C185,$F$148,0))) -> 92.23304151 | G185: -608.3078898 | H185: -60.83078898 | I185: -669.1386788 | J185: 0
B186: 37 | C186: 66 | D186: =IF(Term!$D$13=Calcs!C186,$D$148*(1+$D$147)^B185,0) -> 0 | E186: =IF(C186<Term!$D$13,0,IF(C186=$F$147,$E$146,I185)) -> -669.1386788 | F186: =IF(C186<$F$147,0,IF(F185>0,F185*(1+Term!$D$15),IF($F$147=C186,$F$148,0))) -> 97.767024 | G186: -766.9057028 | H186: -76.69057028 | I186: -843.596273 | J186: 0
B187: 38 | C187: 67 | D187: =IF(Term!$D$13=Calcs!C187,$D$148*(1+$D$147)^B186,0) -> 0 | E187: =IF(C187<Term!$D$13,0,IF(C187=$F$147,$E$146,I186)) -> -843.596273 | F187: =IF(C187<$F$147,0,IF(F186>0,F186*(1+Term!$D$15),IF($F$147=C187,$F$148,0))) -> 103.6330454 | G187: -947.2293185 | H187: -94.72293185 | I187: -1041.95225 | J187: 0
B188: 39 | C188: 68 | D188: =IF(Term!$D$13=Calcs!C188,$D$148*(1+$D$147)^B187,0) -> 0 | E188: =IF(C188<Term!$D$13,0,IF(C188=$F$147,$E$146,I187)) -> -1041.95225 | F188: =IF(C188<$F$147,0,IF(F187>0,F187*(1+Term!$D$15),IF($F$147=C188,$F$148,0))) -> 109.8510282 | G188: -1151.803278 | H188: -115.1803278 | I188: -1266.983606 | J188: 0
B189: 40 | C189: 69 | D189: =IF(Term!$D$13=Calcs!C189,$D$148*(1+$D$147)^B188,0) -> 0 | E189: =IF(C189<Term!$D$13,0,IF(C189=$F$147,$E$146,I188)) -> -1266.983606 | F189: =IF(C189<$F$147,0,IF(F188>0,F188*(1+Term!$D$15),IF($F$147=C189,$F$148,0))) -> 116.4420899 | G189: -1383.425696 | H189: -138.3425696 | I189: -1521.768266 | J189: 0
B190: 41 | C190: 70 | D190: =IF(Term!$D$13=Calcs!C190,$D$148*(1+$D$147)^B189,0) -> 0 | E190: =IF(C190<Term!$D$13,0,IF(C190=$F$147,$E$146,I189)) -> -1521.768266 | F190: =IF(C190<$F$147,0,IF(F189>0,F189*(1+Term!$D$15),IF($F$147=C190,$F$148,0))) -> 123.4286152 | G190: -1645.196881 | H190: -164.5196881 | I190: -1809.716569 | J190: 0
B191: 42 | C191: 71 | D191: =IF(Term!$D$13=Calcs!C191,$D$148*(1+$D$147)^B190,0) -> 0 | E191: =IF(C191<Term!$D$13,0,IF(C191=$F$147,$E$146,I190)) -> -1809.716569 | F191: =IF(C191<$F$147,0,IF(F190>0,F190*(1+Term!$D$15),IF($F$147=C191,$F$148,0))) -> 130.8343322 | G191: -1940.550901 | H191: -194.0550901 | I191: -2134.605991 | J191: 0
B192: 43 | C192: 72 | D192: =IF(Term!$D$13=Calcs!C192,$D$148*(1+$D$147)^B191,0) -> 0 | E192: =IF(C192<Term!$D$13,0,IF(C192=$F$147,$E$146,I191)) -> -2134.605991 | F192: =IF(C192<$F$147,0,IF(F191>0,F191*(1+Term!$D$15),IF($F$147=C192,$F$148,0))) -> 138.6843921 | G192: -2273.290384 | H192: -227.3290384 | I192: -2500.619422 | J192: 0
B193: 44 | C193: 73 | D193: =IF(Term!$D$13=Calcs!C193,$D$148*(1+$D$147)^B192,0) -> 0 | E193: =IF(C193<Term!$D$13,0,IF(C193=$F$147,$E$146,I192)) -> -2500.619422 | F193: =IF(C193<$F$147,0,IF(F192>0,F192*(1+Term!$D$15),IF($F$147=C193,$F$148,0))) -> 147.0054556 | G193: -2647.624877 | H193: -264.7624877 | I193: -2912.387365 | J193: 0
B194: 45 | C194: 74 | D194: =IF(Term!$D$13=Calcs!C194,$D$148*(1+$D$147)^B193,0) -> 0 | E194: =IF(C194<Term!$D$13,0,IF(C194=$F$147,$E$146,I193)) -> -2912.387365 | F194: =IF(C194<$F$147,0,IF(F193>0,F193*(1+Term!$D$15),IF($F$147=C194,$F$148,0))) -> 155.825783 | G194: -3068.213148 | H194: -306.8213148 | I194: -3375.034463 | J194: 0
B195: 46 | C195: 75 | D195: =IF(Term!$D$13=Calcs!C195,$D$148*(1+$D$147)^B194,0) -> 0 | E195: =IF(C195<Term!$D$13,0,IF(C195=$F$147,$E$146,I194)) -> -3375.034463 | F195: =IF(C195<$F$147,0,IF(F194>0,F194*(1+Term!$D$15),IF($F$147=C195,$F$148,0))) -> 165.1753299 | G195: -3540.209793 | H195: -354.0209793 | I195: -3894.230772 | J195: 0
B196: 47 | C196: 76 | D196: =IF(Term!$D$13=Calcs!C196,$D$148*(1+$D$147)^B195,0) -> 0 | E196: =IF(C196<Term!$D$13,0,IF(C196=$F$147,$E$146,I195)) -> -3894.230772 | F196: =IF(C196<$F$147,0,IF(F195>0,F195*(1+Term!$D$15),IF($F$147=C196,$F$148,0))) -> 175.0858497 | G196: -4069.316622 | H196: -406.9316622 | I196: -4476.248284 | J196: 0
B197: 48 | C197: 77 | D197: =IF(Term!$D$13=Calcs!C197,$D$148*(1+$D$147)^B196,0) -> 0 | E197: =IF(C197<Term!$D$13,0,IF(C197=$F$147,$E$146,I196)) -> -4476.248284 | F197: =IF(C197<$F$147,0,IF(F196>0,F196*(1+Term!$D$15),IF($F$147=C197,$F$148,0))) -> 185.5910007 | G197: -4661.839285 | H197: -466.1839285 | I197: -5128.023213 | J197: 0
B198: 49 | C198: 78 | D198: =IF(Term!$D$13=Calcs!C198,$D$148*(1+$D$147)^B197,0) -> 0 | E198: =IF(C198<Term!$D$13,0,IF(C198=$F$147,$E$146,I197)) -> -5128.023213 | F198: =IF(C198<$F$147,0,IF(F197>0,F197*(1+Term!$D$15),IF($F$147=C198,$F$148,0))) -> 196.7264608 | G198: -5324.749674 | H198: -532.4749674 | I198: -5857.224642 | J198: 0
B199: 50 | C199: 79 | D199: =IF(Term!$D$13=Calcs!C199,$D$148*(1+$D$147)^B198,0) -> 0 | E199: =IF(C199<Term!$D$13,0,IF(C199=$F$147,$E$146,I198)) -> -5857.224642 | F199: =IF(C199<$F$147,0,IF(F198>0,F198*(1+Term!$D$15),IF($F$147=C199,$F$148,0))) -> 208.5300484 | G199: -6065.75469 | H199: -606.575469 | I199: -6672.330159 | J199: 0
B200: 51 | C200: 80 | D200: =IF(Term!$D$13=Calcs!C200,$D$148*(1+$D$147)^B199,0) -> 0 | E200: =IF(C200<Term!$D$13,0,IF(C200=$F$147,$E$146,I199)) -> -6672.330159 | F200: =IF(C200<$F$147,0,IF(F199>0,F199*(1+Term!$D$15),IF($F$147=C200,$F$148,0))) -> 221.0418513 | G200: -6893.37201 | H200: -689.337201 | I200: -7582.709211 | J200: 0
B201: 52 | C201: 81 | D201: =IF(Term!$D$13=Calcs!C201,$D$148*(1+$D$147)^B200,0) -> 0 | E201: =IF(C201<Term!$D$13,0,IF(C201=$F$147,$E$146,I200)) -> -7582.709211 | F201: =IF(C201<$F$147,0,IF(F200>0,F200*(1+Term!$D$15),IF($F$147=C201,$F$148,0))) -> 234.3043624 | G201: -7817.013574 | H201: -781.7013574 | I201: -8598.714931 | J201: 0
B202: 53 | C202: 82 | D202: =IF(Term!$D$13=Calcs!C202,$D$148*(1+$D$147)^B201,0) -> 0 | E202: =IF(C202<Term!$D$13,0,IF(C202=$F$147,$E$146,I201)) -> -8598.714931 | F202: =IF(C202<$F$147,0,IF(F201>0,F201*(1+Term!$D$15),IF($F$147=C202,$F$148,0))) -> 248.3626241 | G202: -8847.077555 | H202: -884.7077555 | I202: -9731.785311 | J202: 0
B203: 54 | C203: 83 | D203: =IF(Term!$D$13=Calcs!C203,$D$148*(1+$D$147)^B202,0) -> 0 | E203: =IF(C203<Term!$D$13,0,IF(C203=$F$147,$E$146,I202)) -> -9731.785311 | F203: =IF(C203<$F$147,0,IF(F202>0,F202*(1+Term!$D$15),IF($F$147=C203,$F$148,0))) -> 263.2643816 | G203: -9995.049692 | H203: -999.5049692 | I203: -10994.55466 | J203: 0
B204: 55 | C204: 84 | D204: =IF(Term!$D$13=Calcs!C204,$D$148*(1+$D$147)^B203,0) -> 0 | E204: =IF(C204<Term!$D$13,0,IF(C204=$F$147,$E$146,I203)) -> -10994.55466 | F204: =IF(C204<$F$147,0,IF(F203>0,F203*(1+Term!$D$15),IF($F$147=C204,$F$148,0))) -> 279.0602445 | G204: -11273.61491 | H204: -1127.361491 | I204: -12400.9764 | J204: 0
B205: 56 | C205: 85 | D205: =IF(Term!$D$13=Calcs!C205,$D$148*(1+$D$147)^B204,0) -> 0 | E205: =IF(C205<Term!$D$13,0,IF(C205=$F$147,$E$146,I204)) -> -12400.9764 | F205: =IF(C205<$F$147,0,IF(F204>0,F204*(1+Term!$D$15),IF($F$147=C205,$F$148,0))) -> 295.8038591 | G205: -12696.78026 | H205: -1269.678026 | I205: -13966.45828 | J205: 0
B206: 57 | C206: 86 | D206: =IF(Term!$D$13=Calcs!C206,$D$148*(1+$D$147)^B205,0) -> 0 | E206: =IF(C206<Term!$D$13,0,IF(C206=$F$147,$E$146,I205)) -> -13966.45828 | F206: =IF(C206<$F$147,0,IF(F205>0,F205*(1+Term!$D$15),IF($F$147=C206,$F$148,0))) -> 313.5520907 | G206: -14280.01037 | H206: -1428.001037 | I206: -15708.01141 | J206: 0
B207: 58 | C207: 87 | D207: =IF(Term!$D$13=Calcs!C207,$D$148*(1+$D$147)^B206,0) -> 0 | E207: =IF(C207<Term!$D$13,0,IF(C207=$F$147,$E$146,I206)) -> -15708.01141 | F207: =IF(C207<$F$147,0,IF(F206>0,F206*(1+Term!$D$15),IF($F$147=C207,$F$148,0))) -> 332.3652161 | G207: -16040.37663 | H207: -1604.037663 | I207: -17644.41429 | J207: 0
B208: 59 | C208: 88 | D208: =IF(Term!$D$13=Calcs!C208,$D$148*(1+$D$147)^B207,0) -> 0 | E208: =IF(C208<Term!$D$13,0,IF(C208=$F$147,$E$146,I207)) -> -17644.41429 | F208: =IF(C208<$F$147,0,IF(F207>0,F207*(1+Term!$D$15),IF($F$147=C208,$F$148,0))) -> 352.3071291 | G208: -17996.72142 | H208: -1799.672142 | I208: -19796.39356 | J208: 0
B209: 60 | C209: 89 | D209: =IF(Term!$D$13=Calcs!C209,$D$148*(1+$D$147)^B208,0) -> 0 | E209: =IF(C209<Term!$D$13,0,IF(C209=$F$147,$E$146,I208)) -> -19796.39356 | F209: =IF(C209<$F$147,0,IF(F208>0,F208*(1+Term!$D$15),IF($F$147=C209,$F$148,0))) -> 373.4455568 | G209: -20169.83912 | H209: -2016.983912 | I209: -22186.82303 | J209: 0
B210: 61 | C210: 90 | D210: =IF(Term!$D$13=Calcs!C210,$D$148*(1+$D$147)^B209,0) -> 0 | E210: =IF(C210<Term!$D$13,0,IF(C210=$F$147,$E$146,I209)) -> -22186.82303 | F210: =IF(C210<$F$147,0,IF(F209>0,F209*(1+Term!$D$15),IF($F$147=C210,$F$148,0))) -> 395.8522902 | G210: -22582.67532 | H210: -2258.267532 | I210: -24840.94285 | J210: 0
B211: 62 | C211: 91 | D211: =IF(Term!$D$13=Calcs!C211,$D$148*(1+$D$147)^B210,0) -> 0 | E211: =IF(C211<Term!$D$13,0,IF(C211=$F$147,$E$146,I210)) -> -24840.94285 | F211: =IF(C211<$F$147,0,IF(F210>0,F210*(1+Term!$D$15),IF($F$147=C211,$F$148,0))) -> 419.6034277 | G211: -25260.54628 | H211: -2526.054628 | I211: -27786.6009 | J211: 0
B212: 63 | C212: 92 | D212: =IF(Term!$D$13=Calcs!C212,$D$148*(1+$D$147)^B211,0) -> 0 | E212: =IF(C212<Term!$D$13,0,IF(C212=$F$147,$E$146,I211)) -> -27786.6009 | F212: =IF(C212<$F$147,0,IF(F211>0,F211*(1+Term!$D$15),IF($F$147=C212,$F$148,0))) -> 444.7796333 | G212: -28231.38054 | H212: -2823.138054 | I212: -31054.51859 | J212: 0
B213: 64 | C213: 93 | D213: =IF(Term!$D$13=Calcs!C213,$D$148*(1+$D$147)^B212,0) -> 0 | E213: =IF(C213<Term!$D$13,0,IF(C213=$F$147,$E$146,I212)) -> -31054.51859 | F213: =IF(C213<$F$147,0,IF(F212>0,F212*(1+Term!$D$15),IF($F$147=C213,$F$148,0))) -> 471.4664113 | G213: -31525.985 | H213: -3152.5985 | I213: -34678.5835 | J213: 0
B214: 65 | C214: 94 | D214: =IF(Term!$D$13=Calcs!C214,$D$148*(1+$D$147)^B213,0) -> 0 | E214: =IF(C214<Term!$D$13,0,IF(C214=$F$147,$E$146,I213)) -> -34678.5835 | F214: =IF(C214<$F$147,0,IF(F213>0,F213*(1+Term!$D$15),IF($F$147=C214,$F$148,0))) -> 499.754396 | G214: -35178.3379 | H214: -3517.83379 | I214: -38696.17169 | J214: 0
B215: 66 | C215: 95 | D215: =IF(Term!$D$13=Calcs!C215,$D$148*(1+$D$147)^B214,0) -> 0 | E215: =IF(C215<Term!$D$13,0,IF(C215=$F$147,$E$146,I214)) -> -38696.17169 | F215: =IF(C215<$F$147,0,IF(F214>0,F214*(1+Term!$D$15),IF($F$147=C215,$F$148,0))) -> 529.7396598 | G215: =E215-F215 -> -39225.91135 | H215: =G215*$H$146 -> -3922.591135 | I215: =G215+H215 -> -43148.50248 | J215: =IF(I215>0,C215,0) -> 0
B216: 67 | C216: =C215+1 -> 96 | D216: =IF(Term!$D$13=Calcs!C216,$D$148*(1+$D$147)^B215,0) -> 0 | E216: =IF(C216<Term!$D$13,0,IF(C216=$F$147,$E$146,I215)) -> -43148.50248 | F216: =IF(C216<$F$147,0,IF(F215>0,F215*(1+Term!$D$15),IF($F$147=C216,$F$148,0))) -> 561.5240393 | G216: -43710.02652 | H216: -4371.002652 | I216: -48081.02917 | J216: 0
B217: 68 | C217: 97 | D217: =IF(Term!$D$13=Calcs!C217,$D$148*(1+$D$147)^B216,0) -> 0 | E217: =IF(C217<Term!$D$13,0,IF(C217=$F$147,$E$146,I216)) -> -48081.02917 | F217: =IF(C217<$F$147,0,IF(F216>0,F216*(1+Term!$D$15),IF($F$147=C217,$F$148,0))) -> 595.2154817 | G217: -48676.24466 | H217: -4867.624466 | I217: -53543.86912 | J217: 0
B218: 69 | C218: 98 | D218: =IF(Term!$D$13=Calcs!C218,$D$148*(1+$D$147)^B217,0) -> 0 | E218: =IF(C218<Term!$D$13,0,IF(C218=$F$147,$E$146,I217)) -> -53543.86912 | F218: =IF(C218<$F$147,0,IF(F217>0,F217*(1+Term!$D$15),IF($F$147=C218,$F$148,0))) -> 630.9284106 | G218: -54174.79753 | H218: -5417.479753 | I218: -59592.27729 | J218: 0
B219: 70 | C219: 99 | D219: =IF(Term!$D$13=Calcs!C219,$D$148*(1+$D$147)^B218,0) -> 0 | E219: =IF(C219<Term!$D$13,0,IF(C219=$F$147,$E$146,I218)) -> -59592.27729 | F219: =IF(C219<$F$147,0,IF(F218>0,F218*(1+Term!$D$15),IF($F$147=C219,$F$148,0))) -> 668.7841152 | G219: -60261.0614 | H219: -6026.10614 | I219: -66287.16754 | J219: 0
B220: 71 | C220: 100 | D220: =IF(Term!$D$13=Calcs!C220,$D$148*(1+$D$147)^B219,0) -> 0 | E220: =IF(C220<Term!$D$13,0,IF(C220=$F$147,$E$146,I219)) -> -66287.16754 | F220: =IF(C220<$F$147,0,IF(F219>0,F219*(1+Term!$D$15),IF($F$147=C220,$F$148,0))) -> 708.9111621 | G220: -66996.0787 | H220: -6699.60787 | I220: -73695.68657 | J220: 0
B221: 72 | C221: 101 | D221: =IF(Term!$D$13=Calcs!C221,$D$148*(1+$D$147)^B220,0) -> 0 | E221: =IF(C221<Term!$D$13,0,IF(C221=$F$147,$E$146,I220)) -> -73695.68657 | F221: =IF(C221<$F$147,0,IF(F220>0,F220*(1+Term!$D$15),IF($F$147=C221,$F$148,0))) -> 751.4458319 | G221: -74447.13241 | H221: -7444.713241 | I221: -81891.84565 | J221: 0
B222: 73 | C222: 102 | D222: =IF(Term!$D$13=Calcs!C222,$D$148*(1+$D$147)^B221,0) -> 0 | E222: =IF(C222<Term!$D$13,0,IF(C222=$F$147,$E$146,I221)) -> -81891.84565 | F222: =IF(C222<$F$147,0,IF(F221>0,F221*(1+Term!$D$15),IF($F$147=C222,$F$148,0))) -> 796.5325818 | G222: -82688.37823 | H222: -8268.837823 | I222: -90957.21605 | J222: 0
B223: 74 | C223: 103 | D223: =IF(Term!$D$13=Calcs!C223,$D$148*(1+$D$147)^B222,0) -> 0 | E223: =IF(C223<Term!$D$13,0,IF(C223=$F$147,$E$146,I222)) -> -90957.21605 | F223: =IF(C223<$F$147,0,IF(F222>0,F222*(1+Term!$D$15),IF($F$147=C223,$F$148,0))) -> 844.3245367 | G223: -91801.54059 | H223: -9180.154059 | I223: -100981.6946 | J223: 0
B224: 75 | C224: 104 | D224: =IF(Term!$D$13=Calcs!C224,$D$148*(1+$D$147)^B223,0) -> 0 | E224: =IF(C224<Term!$D$13,0,IF(C224=$F$147,$E$146,I223)) -> -100981.6946 | F224: =IF(C224<$F$147,0,IF(F223>0,F223*(1+Term!$D$15),IF($F$147=C224,$F$148,0))) -> 894.9840089 | G224: -101876.6787 | H224: -10187.66787 | I224: -112064.3465 | J224: 0
... 14 more rows
